Cogmind - Beta 14 *** ADVENTURER MODE // 2025.03.21 @ 01:00:54 Player: Olexender Result: Destroyed by G-47 Trooper with Particle Gun Performance ------------- Evolutions (2) 1000 Regions Visited (6) 1200 Robots Destroyed (49) 245 Value Destroyed (1748) 1748 Prototype IDs (2) 40 Alien Tech Used (0) 0 Bonus (-35) -35 TOTAL SCORE: 4198 Bonus ------- Follower Combat Kills 7 Friendly Fire -42 Cogmind --------- Core Integrity 0/550 Matter 226/300 Energy 24/100 System Corruption 0% Temperature Danger (467) Movement Core (350) Ox6 Location -8/Storage Parts ------- > --- POWER (2) -------- (None) > --- PROPULSION (3) --- (None) > --- UTILITY (3) ------ Large Storage Unit Advanced Targeting Computer > --- WEAPON (3) ------- (None) > --- INVENTORY (15) --- Improved Aluminum Leg Carbon-fiber Leg Large Battery (200) High-capacity Matter Pod (200) Medium Armor Plating Scythe Scythe Scythe Peak State ------------ > --- POWER ------------ Improved Ion Engine Light Nuclear Core > --- PROPULSION ------- Carbon-fiber Leg Carbon-fiber Leg Titanium Leg > --- UTILITY ---------- Improved Heat Sink Large Storage Unit Hardened Medium Armor Plating > --- WEAPON ----------- Advanced Beam Cannon Gauss Rifle Assault Cannon > --- INVENTORY -------- Improved Ion Engine Improved Aluminum Leg Carbon-fiber Leg Improved Heat Sink Large Battery Medium Matter Pod Advanced Targeting Computer Medium Armor Plating Medium Laser Beam Rifle Advanced Beam Cannon Minigun Rocket Launcher Mining Laser Mining Claw [Rating: 34] Favorites ----------- Power Light Deuterium Engine Engine Light Deuterium Engine Power Core Light Nuclear Core Propulsion Carbon-fiber Leg Leg Carbon-fiber Leg Utility Improved Heat Sink Device Improved Heat Sink Storage Large Storage Unit Processor Advanced Targeting Computer Protection Hardened Medium Armor Plating Weapon Medium Laser Energy Gun Medium Laser Energy Cannon Advanced Beam Cannon Ballistic Gun Gauss Rifle Ballistic Cannon Assault Cannon Launcher Rocket Launcher Build | -11 -10 -10 -10 -9 -8 -8 ------- Run | Yrd Mat Min Exi Min Mat Sto Slots Evolved 4 | . . . . . 4 . Power 1 | . . . . . 1 . Propulsion 1 | . . . . . 1 . Utility 1 | . . . . . 1 . Weapon 1 | . . . . . 1 . Parts Attached 39 | 6 1 1 . 3 14 14 Power 7 | 1 . . . 1 2 3 Engine 6 | 1 . . . 1 2 2 Core 1 | . . . . . . 1 Reactor . | . . . . . . . Propulsion 11 | 2 . . . 2 5 2 Treads . | . . . . . . . Leg 11 | 2 . . . 2 5 2 Wheel . | . . . . . . . Hover . | . . . . . . . Flight . | . . . . . . . Utility 9 | 1 1 1 . . 3 3 Device 2 | . . 1 . . . 1 Storage 3 | 1 1 . . . 1 . Processor 1 | . . . . . . 1 Hackware . | . . . . . . . Protection 3 | . . . . . 2 1 Artifact . | . . . . . . . Weapon 12 | 2 . . . . 4 6 Energy Gun 5 | 2 . . . . 2 1 Energy Cannon 2 | . . . . . . 2 Ballistic Gun 2 | . . . . . 1 1 Ballistic Cannon 1 | . . . . . . 1 Launcher 2 | . . . . . 1 1 Special Weapon . | . . . . . . . Impact Weapon . | . . . . . . . Slashing Weapon . | . . . . . . . Piercing Weapon . | . . . . . . . Special Melee Weapon . | . . . . . . . Unidentified Prototypes . | . . . . . . . Parts Lost 16 | . . . . . . 16 Power 4 | . . . . . . 4 Propulsion 3 | . . . . . . 3 Utility 3 | . . . . . . 3 Weapon 6 | . . . . . . 6 Highest Loss Streak 14 | . . . . . . 14 To Critical Strikes . | . . . . . . . Average Slot Usage (%) 96 | . 85 94 100 100 94 96 Engine 14 | . 14 14 14 14 17 11 Core 1 | . . . . . . 4 Leg 27 | . 28 28 28 28 27 25 Device 10 | . . 8 14 14 9 9 Storage 11 | . 14 14 14 14 9 9 Protection 3 | . . . . . 4 8 Energy Gun 20 | . 28 28 28 28 18 10 Energy Cannon 1 | . . . . . . 6 Ballistic Gun 3 | . . . . . 7 5 Ballistic Cannon 1 | . . . . . . 3 Peak Build Rating 34 | 6 7 9 9 12 33 34 Average Rating 20 | 4 6 7 9 10 28 31 On Entrance 10 | . 6 6 9 9 12 33 Naked Turns . | . . . . . . . Heaviest Build 54 | 14 19 20 20 22 53 54 Greatest Support 47 | 20 20 20 20 23 47 47 Greatest Overweight (x) 1 | 1 . . . 1 1 1 Average Overweight (x) . | . . . . . . . Largest Inventory Capacity 15 | 8 10 10 10 10 15 15 Average Capacity 12 | 7 8 10 10 10 14 15 Most Carried 15 | 5 3 6 6 10 15 15 Average Carried 9 | 1 1 4 5 8 11 13 Final Capacity 15 | 8 10 10 10 10 15 15 Final Carried 13 | . 3 5 6 9 13 8 Class Distribution -------------------- 39% | Scavenger-Tank 35% | Mutant 15% | Scavenger-Gunner 10% | Scavenger-Mutant Dominant Class ---------------- Mutant | -10/Materials Mutant | -10/Mines Mutant | -10/Exiles Mutant | -9/Mines Scavenger-Gunner | -8/Materials Scavenger-Tank | -8/Storage Resources | -11 -10 -10 -10 -9 -8 -8 ----------- Run | Yrd Mat Min Exi Min Mat Sto Matter Collected 955 | 244 16 10 . 140 248 297 Remotely . | . . . . . . . Salvage Created 2100 | . 43 94 . 156 624 1183 Parts 95 | . 2 4 . 9 27 53 Haulers Intercepted . | . . . . . . . Recyclers Shooed 1 | . . . . . 1 . Parts Field Recycled . | . . . . . . . Retrieved Matter . | . . . . . . . Parts Self-Destructed . | . . . . . . . Prevented . | . . . . . . . Kills | -11 -10 -10 -10 -9 -8 -8 ------- Run | Yrd Mat Min Exi Min Mat Sto Combat Hostiles Destroyed 42 | . 1 2 . 8 12 19 Guns 37 | . 1 2 . 8 12 14 Cannons 5 | . . . . . . 5 Classes Destroyed 12 | . 1 . . 2 4 5 Worker 4 | . . . . . . 4 Recycler 1 | . . . . . . 1 Mechanic 2 | . . . . . . 2 Operator 1 | . . . . . . 1 Watcher 3 | . . . . . 2 1 Swarmer 3 | . . . . . 2 1 Grunt 20 | . 1 2 . 2 5 10 Brawler 1 | . . . . . . 1 Duelist 4 | . . . . 1 . 3 Sentry 7 | . . . . . 4 3 Hunter 2 | . . . . . 1 1 Assembled 4 | . . . . 4 . . Best Kill Streak 7 | . 1 2 . 3 3 7 Combat Bots Only 4 | . 1 2 . 3 3 4 Max Kills in Single Turn 2 | . 1 1 . 1 1 2 Gunslinging . | . . . . . . . Exploded . | . . . . . . . Melee . | . . . . . . . Uniques/NPCs Destroyed 1 | . . . . 1 . . YI-UF0 (-9/Mines) Combat | -11 -10 -10 -10 -9 -8 -8 -------- Run | Yrd Mat Min Exi Min Mat Sto Hostile Shots Fired 291 | . 1 7 . 14 44 225 Missed 54 | . 1 2 . 4 9 38 Damage Taken 2845 | . . 65 . 137 367 2276 Core 607 | . . 25 . 26 61 495 Absorbed by Shields . | . . . . . . . Ignored by Resistances 822 | . . 19 . 42 109 652 Core Remaining (%) 89 | 100 . . . 79 . . Volleys Fired 131 | . 4 6 . 16 38 67 Largest 3 | . 2 2 . 2 3 3 Hottest 180 | . 100 100 . 100 140 180 Shots Fired 326 | . 8 12 . 32 103 171 Gun 277 | . 8 12 . 32 103 122 Cannon 48 | . . . . . . 48 Launcher 1 | . . . . . . 1 Special . | . . . . . . . Kinetic 97 | . . . . . 27 70 Thermal 228 | . 8 12 . 32 76 100 Explosive 1 | . . . . . . 1 Electromagnetic . | . . . . . . . Robot Hit Streak 30 | . 2 4 . 11 9 30 Robot Miss Streak 5 | . 2 2 . 1 3 5 Penetration Max 1 | . . . . . 1 1 Secondary Targets 7 | . . . . 2 . 5 Max Gunslinging Chain 1 | . . . . 1 . 1 Shots Hit Robots 220 | . 4 8 . 25 65 118 Core Hits 107 | . 2 5 . 16 28 56 Critical Kills . | . . . . . . . Critical Parts Destroyed . | . . . . . . . Critical Strikes 15 | . . 1 . 2 5 7 Burn 13 | . . 1 . 2 5 5 Blast 2 | . . . . . . 2 Melee Attacks . | . . . . . . . Impact . | . . . . . . . Slashing . | . . . . . . . Piercing . | . . . . . . . Sneak Attacks . | . . . . . . . Combat Hostiles . | . . . . . . . Follow-up Attacks . | . . . . . . . Damage Inflicted 4165 | . 50 99 . 319 999 2698 Guns 3112 | . 50 99 . 319 999 1645 Cannons 758 | . . . . . . 758 Explosions 295 | . . . . . . 295 Melee . | . . . . . . . Ramming . | . . . . . . . Kinetic 1458 | . . . . . 290 1168 Thermal 2412 | . 50 99 . 319 709 1235 Explosive 295 | . . . . . . 295 Electromagnetic . | . . . . . . . Impact . | . . . . . . . Slashing . | . . . . . . . Piercing . | . . . . . . . Highest Corruption . | . . . . . . . Average Corruption . | . . . . . . . Corruption Purged . | . . . . . . . Corruption Blocked . | . . . . . . . Overload Shots . | . . . . . . . Overflow Damage 3 | . . . . . . 3 Projectiles 3 | . . . . . . 3 Explosions . | . . . . . . . Melee . | . . . . . . . Knockbacks 7 | . . . . . . 7 Impact . | . . . . . . . Kinetic 6 | . . . . . . 6 Secondary 1 | . . . . . . 1 Self-Inflicted Damage 3 | . . . . . . 3 Shots 1 | . . . . . . 1 Rammed . | . . . . . . . Targets Rammed . | . . . . . . . Kicked . | . . . . . . . Crushed . | . . . . . . . Highest Temperature 491 | . 78 279 . 36 171 491 Average Temperature 139 | . 30 139 . 20 53 199 Received Heat Transfer 1855 | . . 45 . 46 216 1548 Effects 15 | . . . . . . 15 Shutdowns 6 | . . . . . . 6 Energy Bleed 2 | . . . . . . 2 Interference 2 | . . . . . . 2 Short Circuit 2 | . . . . . . 2 Damage (minor) 1 | . . . . . . 1 Damage (major) 2 | . . . . . . 2 Siege Activations . | . . . . . . . Robots Corrupted . | . . . . . . . Combat Hostiles . | . . . . . . . Parts Fried . | . . . . . . . Impact Corruptions . | . . . . . . . Robots Melted . | . . . . . . . Combat Hostiles . | . . . . . . . Parts Melted 9 | . . . . . 6 3 Heat Transferred 6706 | . 148 370 . 1073 2220 2895 Parts Sabotaged . | . . . . . . . Parts Stolen . | . . . . . . . Parts Stripped . | . . . . . . . Power Chain Reactions . | . . . . . . . Alert | -11 -10 -10 -10 -9 -8 -8 ------- Run | Yrd Mat Min Exi Min Mat Sto Peak Influence 276 | . 30 59 . 85 210 276 Initial 34 | . . 9 . . . 34 Average 72 | . 19 54 . 7 93 122 Maximum Alert Level 1 | . . . . . 1 1 Low Security (%) 89 | 100 100 100 . 100 92 75 Level 1 10 | . . . . . 7 24 Level 2 . | . . . . . . . Level 3 . | . . . . . . . Level 4 . | . . . . . . . Level 5 . | . . . . . . . High Security . | . . . . . . . Max Security . | . . . . . . . Squads Dispatched 12 | . 2 . . . 3 7 Investigation 9 | . 2 . . . 2 5 Extermination . | . . . . . . . Reinforcement 1 | . . . . . 1 . Assault 2 | . . . . . . 2 Garrison . | . . . . . . . Intercept . | . . . . . . . Searches Triggered . | . . . . . . . Construction Impeded . | . . . . . . . Haulers Reinforced . | . . . . . . . Active Scanning Responses . | . . . . . . . Cargo Convoy Interrupts . | . . . . . . . Stealth | -11 -10 -10 -10 -9 -8 -8 --------- Run | Yrd Mat Min Exi Min Mat Sto Distress Signals 1 | . . . . . 1 . Communications Jammed . | . . . . . . . Distress Signals . | . . . . . . . Times Spotted 69 | . 2 2 . 8 19 38 Peak Tracking Total 13 | . 1 1 . 3 5 13 Tactical Retreats 2 | . . . . . 1 1 Traps | -11 -10 -10 -10 -9 -8 -8 ------- Run | Yrd Mat Min Exi Min Mat Sto Traps Triggered 2 | . 1 . . . . 1 Indirectly . | . . . . . . . Trap Hack Attempts . | . . . . . . . Triggered . | . . . . . . . Disarmed . | . . . . . . . Reprogrammed . | . . . . . . . Reused . | . . . . . . . Traps Extracted . | . . . . . . . Installed . | . . . . . . . Triggered . | . . . . . . . Machines | -11 -10 -10 -10 -9 -8 -8 ---------- Run | Yrd Mat Min Exi Min Mat Sto Machines Disabled 6 | . 1 . . . 1 4 Max in Single Turn 1 | . 1 . . . 1 1 Machines Repaired . | . . . . . . . Machines Dismantled . | . . . . . . . Machines Sabotaged . | . . . . . . . Overloaded Fab Kills . | . . . . . . . Hacking | -11 -10 -10 -10 -9 -8 -8 --------- Run | Yrd Mat Min Exi Min Mat Sto Machines Accessed 20 | . 4 . 4 . 4 8 Terminals 16 | . 4 . . . 4 8 Fabricators . | . . . . . . . Repair Stations . | . . . . . . . Recycling Units . | . . . . . . . Scanalyzers . | . . . . . . . Garrison Access . | . . . . . . . Total Hacks 96 | . 13 . 49 . 11 23 Successful 73 | . 9 . 49 . 6 9 Failed 23 | . 4 . . . 5 14 Catastrophic 3 | . 1 . . . . 2 Database Lockouts . | . . . . . . . Manual 2 | . . . . . . 2 Terminals 47 | . 13 . . . 11 23 Fabricators . | . . . . . . . Repair Stations . | . . . . . . . Recycling Units . | . . . . . . . Scanalyzers . | . . . . . . . Garrison Access . | . . . . . . . Terminal Hacks 73 | . 9 . 49 . 6 9 Record 54 | . 2 . 49 . 3 . Robot Schematic 1 | . . . . . . 1 Prototype ID Bank 1 | . 1 . . . . . Open Door 2 | . . . . . . 2 Emergency Access Points 1 | . 1 . . . . . Unreport Threat 4 | . 1 . . . 1 2 Locate Traps 1 | . . . . . . 1 Dispatch Records 1 | . 1 . . . . . Patrol Status 1 | . 1 . . . . . Hauler Manifests 1 | . 1 . . . . . Zone Layout 6 | . 1 . . . 2 3 Fabricator Hacks . | . . . . . . . Repair Station Hacks . | . . . . . . . Recycling Unit Hacks . | . . . . . . . Scanalyzer . | . . . . . . . Garrison Access Hacks . | . . . . . . . Unauthorized Hacks . | . . . . . . . Terminals . | . . . . . . . Fabricators . | . . . . . . . Repair Stations . | . . . . . . . Recycling Units . | . . . . . . . Scanalyzers . | . . . . . . . Garrison Access . | . . . . . . . Data Cores Recovered . | . . . . . . . Used . | . . . . . . . Hacking Detections 15 | . 4 . . . 4 7 Full Trace Events 9 | . 1 . . . 2 6 Feedback Events . | . . . . . . . Feedback Blocked . | . . . . . . . Robot Schematics Acquired 1 | . . . . . . 1 Robots Built . | . . . . . . . Authchips . | . . . . . . . Time . | . . . . . . . Total Robot Build Rating . | . . . . . . . Part Schematics Acquired . | . . . . . . . Parts Built . | . . . . . . . Authchips . | . . . . . . . Time . | . . . . . . . Total Part Build Rating . | . . . . . . . Parts Repaired . | . . . . . . . Time . | . . . . . . . Parts Recycled . | . . . . . . . Recycled Matter . | . . . . . . . Retrieved Matter . | . . . . . . . Retrieved Components . | . . . . . . . Parts Scanalyzed . | . . . . . . . Part Schematics Acquired . | . . . . . . . Parts Damaged . | . . . . . . . Bothacking | -11 -10 -10 -10 -9 -8 -8 ------------ Run | Yrd Mat Min Exi Min Mat Sto Used RIF Installer . | . . . . . . . Robots Hacked . | . . . . . . . Non-combat . | . . . . . . . Combat . | . . . . . . . Robot Hacks Applied . | . . . . . . . Relay Couplers Released . | . . . . . . . Fabnet Peak Effective % . | . . . . . . . Robots Rewired . | . . . . . . . Allies Hacked . | . . . . . . . Hacks Repelled . | . . . . . . . Allies | -11 -10 -10 -10 -9 -8 -8 -------- Run | Yrd Mat Min Exi Min Mat Sto Total Allies 5 | . . . . 3 . 2 Largest Group 3 | . . . . 3 2 2 Highest-Rated Group 62 | . . . . 40 32 62 Highest-Rated Ally 31 | . . . . 16 16 31 Total Orders . | . . . . . . . Ally Attacks 14 | . . . . 2 5 7 Total Damage 139 | . . . . 13 23 103 Kills 1 | . . . . . 1 . Allies Corrupted . | . . . . . . . Allies Melted . | . . . . . . . Intel | -11 -10 -10 -10 -9 -8 -8 ------- Run | Yrd Mat Min Exi Min Mat Sto Robot Analysis Total . | . . . . . . . Derelict Logs Recovered 1 | . . . . 1 . . Drone Launches . | . . . . . . . Drone Recoveries . | . . . . . . . Exploration | -11 -10 -10 -10 -9 -8 -8 ------------- Run | Yrd Mat Min Exi Min Mat Sto Turns Passed 2895 | 54 151 103 317 673 762 835 Spaces Moved 1511 | 44 106 68 264 409 321 299 Core 15 | 15 . . . . . . Treads . | . . . . . . . Legs 1496 | 29 106 68 264 409 321 299 Wheels . | . . . . . . . Hover . | . . . . . . . Flight . | . . . . . . . Fastest Speed 50 | 50 120 120 120 120 120 123 Average Speed 144 | 98 120 120 120 120 176 187 Slowest Speed 193 | 120 120 120 120 190 193 193 Overloaded Moves . | . . . . . . . Propulsion Burnouts . | . . . . . . . Robots Hopped . | . . . . . . . Cave-ins Triggered . | . . . . . . . Exploration Rate (%) 36 | 3 24 18 61 60 34 56 Regions Visited 6 Branch Regions 4 Pre-discovered Areas 1 | . . . 1 . . . Known Exits Taken . | . . . . . . . Unknown Exits Taken 6 | 1 1 1 1 1 1 . Scrap Searched 1 | . . . . 1 . . Spaces Dug . | . . . . . . . Terrain Destroyed 10 | . . . . . . 10 Melee . | . . . . . . . Projectile 3 | . . . . . . 3 AOE 7 | . . . . . . 7 Terrain Rammed . | . . . . . . . Walls Destroyed . | . . . . . . . Machines Disabled . | . . . . . . . Actions | -11 -10 -10 -10 -9 -8 -8 --------- Run | Yrd Mat Min Exi Min Mat Sto Total 1945 | 54 122 77 264 556 434 438 Wait 206 | . 7 . . 122 37 40 Move 1505 | 43 105 67 263 408 320 299 Hop . | . . . . . . . Pick Up 44 | 5 4 3 1 5 15 11 Fast Attach 1 | 1 . . . . . . Attach 22 | 5 1 1 . . 5 10 Detach 1 | . . . . . 1 . Swap 16 | . . . . 3 9 4 Drop 19 | . 1 . . 2 9 7 Fire 131 | . 4 6 . 16 38 67 Melee . | . . . . . . . Ram . | . . . . . . . Kick . | . . . . . . . Crush . | . . . . . . . Escape Stasis . | . . . . . . . Rewire . | . . . . . . . Trap . | . . . . . . . Miscellaneous . | . . . . . . . Route ------- -11/Scrapyard -10/Materials -10/Mines -10/Exiles -9/Mines -8/Materials (discovered 4 exits: *Fac x2 / *Sto x2) -8/Storage (discovered 1 exit: [Rec]) History --------- Turn | Location | Event 7 | -11/Scrapyard | Discovered new exit (range 13) 55 | -11/Scrapyard | Entered Materials 180 | -10/Materials | Discovered new exit (range 7) 206 | -10/Materials | Entered Mines 304 | -10/Mines | Deemed a non-threat by the Exiles lab entrance 304 | -10/Mines | Discovered new exit (range 5) 306 | -10/Mines | Build established: Mutant 309 | -10/Mines | Entered Exiles 338 | -10/Exiles | Met 8R-AWN 360 | -10/Exiles | Met EX-HEX 420 | -10/Exiles | Met EX-BIN 533 | -10/Exiles | Met EX-DEC 537 | -10/Exiles | Learned location of Zion (-7) 615 | -10/Exiles | Discovered new exit (range 10) 626 | -10/Exiles | Entered Mines 627 | -9/Mines | Assembled infested the area 850 | -9/Mines | Received a Rocket Launcher from a helpful Derelict 1141 | -9/Mines | Assisted by bots powering up and referring to "LRC-V3" 1222 | -9/Mines | Destroyed YI-UF0 1252 | -9/Mines | Discovered new exit (range 9) 1299 | -9/Mines | Entered Materials 1299 | -8/Materials | Accompanied by 2 allies 1299 | -8/Materials | Evolved 4 slots: Power x1, Propulsion x1, Utility x1, Weapon x1 1300 | -8/Materials | Identified exit to Factory 1529 | -8/Materials | Discovered new exit (range 11) 1607 | -8/Materials | Build established: Scavenger-Gunner 1991 | -8/Materials | Discovered new exit (range 11) 2002 | -8/Materials | Build established: Scavenger-Tank 2061 | -8/Materials | Discovered exit to Factory (range 15) 2061 | -8/Materials | Entered Storage 2751 | -8/Storage | Discovered new exit (range 13) 2758 | -8/Storage | Met a pair of Derelict thieves 2872 | -8/Storage | Core integrity fell below 50% 2891 | -8/Storage | Core integrity fell below 20% 2896 | -8/Storage | Destroyed by G-47 Trooper with Particle Gun Last Messages --------------- 02879_ Imp. Heat Sink destroyed. 02880_ M-13 Machinist repairs I-25 Savior. 02881_ M-13 Machinist destroyed. 02882_ Rocket Launcher destroyed. 02883_ Critical hit (Burn: +37). 02885_ Minigun broken. 02885_ Overheating: Short circuit. 02886_ Overheating: Energy bleed (-4). 02886_ The unstable cave ceiling collapses. 02886_ Broken Minigun destroyed. 02886_ Imp. Heat Sink destroyed. 02890_ Hrd. Medium Armor Plating destroyed. 02890_ Adv. Beam Cannon destroyed. 02891_ The unstable cave ceiling collapses. 02893_ Overheating: Med. Laser damaged (-2). 02893_ Med. Laser destroyed. 02894_ Imp. Ion Engine destroyed. 02895_ Overheating: Energy bleed (-2). 02896_ Overheating: Lrg. Storage Unit damaged (-109). 02896_ Overheating: Adv. Targeting Computer damaged (-9). Map ----- +----------------------------------------------------+ | | | | | | | | | | | | | | | | | | | | | | | | | | | | | | | | | | | | | | | ????????????????????????????????????????? | | ????????????????????????????????????????? | | ?????????????###########????????????????? | | ?????????????# """ ##???????????????? | | ????????????## """ ""???????????????? | | ????????????#" * "" T"#??????????????? | | ????????????#T/%@ "" ""#??????????????? | | ????????????# *! ###??????????????? | | ???????????#;#igggg #????????????????? | | ???????????## gg%g #?#####??????????? | | ?????????##### = #?#"""#??????????? | | ??????####"## g ######?#"R"#??????????? | | ??????# " [=%g #######" "###????????? | | ??????# < " %!%* #######??? | | ??????# "#T### g# """ # #"T"#### | | ??????########?# # "R" # % [ | | ??########?????# g " " # | | ??########?????# %# # """ """ | | ?? ####????## ########+##### """ """ | | ?? #T####### ##### #??# """ """ | | ?? " / " #??# | | ?? " # T "T #??# | | ?? " ###### ##### #??# | | ?? # #?#####+####??## ##?#####"T"### | | ??########?#### ##???# #??#####"""#?? | | ??########?###T ##???#/ #??## ######?? | | ???????????####" "###???#% #??##"##?????? | | ???????????## !##??##= ##?#T ##?????? | | ???????????##]] ##??# ####+##?????? | | ???????????## ] ]]##??# #??????? | | ???????????##] ] ]##?## #??????? | +----------------------------------------------------+ Best States ------------- Heat Dissipation 59 Energy Generation 23 Energy Capacity 325 Matter Stores 300 Matter Capacity 300 Sight Range 16 Terrain Scan Density 10 Armor Coverage 225 Resistance: KI 20 Resistance: TH 20 Resistance: EX 20 Resistance: EM 20 Resistance: I 20 Resistance: S 20 Resistance: P 20 Evasion (%) 55 Offensive Hacking 10 Item Schematics ----------------- None Robot Schematics ------------------ G-47 Trooper | -8/Storage | Hacked Fabricated ------------ Nothing Alien Tech Used ----------------- None Achievements -------------- None Challenges ------------ None Game ------ Seed GreatInertialArchive Manual? 0 Play Time 00:30:05 Cumulative 279.1 hours Start 2025.03.19 @ 04:45:25 End 2025.03.21 @ 01:00:54 Sessions 3 Manual Loads 0 Difficulty Adventurer Special Mode None Game No. 221 Rogue 0 Adventurer 158 Explorer 63 Win Type - Total 0 Types 0/0/0/0/0/0/0/0/0 Lore% 45 Gallery% 62 Achievement% 51 Wizard Run 0 Options --------- Layout 0 ASCII 0 Keyboard 0 Movement Mouse Keybinds 0 Fullscreen 1 Font 24/Smallcaps Map View 76x50 Zoom Use 0% Tactical HUD 1 Map Filters NONE Filters NONE Steam 1 RUN: d21359c1-79c1-4fbb-9332-6ff896de9234